[Event "*** SCC Grand Prix: Titled Tuesday Blitz"]
[Site "Chess.com"]
[Date "2020.07.07"]
[Round "9"]
[White "seorobert1971"]
[Black "Sanan_Sjugirov"]
[Result "1/2-1/2"]
[WhiteElo "2708"]
[BlackElo "2827"]
[TimeControl "180+1"]
[EndTime "11:49:29 PDT"]
[Termination "Game drawn by repetition"]

1. c4 {[%clk 0:03:00.9]} 1... Nf6 {[%clk 0:02:58.3]} 2. Nc3 {[%clk 0:03:01.1]}
2... e5 {[%clk 0:02:58.2]} 3. Nf3 {[%clk 0:03:01.1]} 3... Nc6 {[%clk 0:02:58.1]}
4. g3 {[%clk 0:03:01.4]} 4... Bb4 {[%clk 0:02:56.9]} 5. Bg2 {[%clk 0:03:01.5]}
5... O-O {[%clk 0:02:55.7]} 6. O-O {[%clk 0:03:01.3]} 6... e4 {[%clk 0:02:45.3]}
7. Ng5 {[%clk 0:03:01.1]} 7... Bxc3 {[%clk 0:02:42.4]} 8. bxc3 {[%clk
0:03:01.3]} 8... d5 {[%clk 0:02:36.5]} 9. cxd5 {[%clk 0:02:56.9]} 9... Qxd5
{[%clk 0:02:35.9]} 10. d3 {[%clk 0:02:57]} 10... Qe5 {[%clk 0:02:05.3]} 11. Nxe4
{[%clk 0:02:48.2]} 11... Nxe4 {[%clk 0:02:04.9]} 12. Bxe4 {[%clk 0:02:47.6]}
12... Qxc3 {[%clk 0:02:03.8]} 13. Rb1 {[%clk 0:02:45.7]} 13... Qa5 {[%clk
0:02:02.4]} 14. Qc2 {[%clk 0:02:36.8]} 14... Nd4 {[%clk 0:01:58.4]} 15. Qb2
{[%clk 0:02:33.2]} 15... c5 {[%clk 0:01:58]} 16. Be3 {[%clk 0:02:29.9]} 16...
Bg4 {[%clk 0:01:39.6]} 17. Bxd4 {[%clk 0:02:20.7]} 17... cxd4 {[%clk 0:01:40.5]}
18. Qxd4 {[%clk 0:02:16.4]} 18... Bxe2 {[%clk 0:01:39.9]} 19. Rfe1 {[%clk
0:02:15.9]} 19... Bh5 {[%clk 0:01:39.7]} 20. Bxb7 {[%clk 0:02:10.8]} 20... Rad8
{[%clk 0:01:37.4]} 21. Qe3 {[%clk 0:02:08.6]} 21... Qxa2 {[%clk 0:01:27.8]} 22.
d4 {[%clk 0:01:54.5]} 22... Bg6 {[%clk 0:01:12.6]} 23. Rbd1 {[%clk 0:01:46.7]}
23... Qb2 {[%clk 0:01:05.3]} 24. Bg2 {[%clk 0:01:44.1]} 24... a5 {[%clk
0:01:02.2]} 25. d5 {[%clk 0:01:42.6]} 25... a4 {[%clk 0:01:02.1]} 26. Ra1 {[%clk
0:01:27.5]} 26... Qb4 {[%clk 0:00:54.1]} 27. Rec1 {[%clk 0:01:21]} 27... Rc8
{[%clk 0:00:32.3]} 28. Rc6 {[%clk 0:01:14.3]} 28... Rce8 {[%clk 0:00:28.8]} 29.
Qc3 {[%clk 0:01:10]} 29... Qb3 {[%clk 0:00:17.5]} 30. h4 {[%clk 0:01:00]} 30...
h6 {[%clk 0:00:14]} 31. d6 {[%clk 0:00:55.2]} 31... Rb8 {[%clk 0:00:11.8]} 32.
d7 {[%clk 0:00:48.6]} 32... Qb5 {[%clk 0:00:09.8]} 33. Rc7 {[%clk 0:00:45.1]}
33... Rfd8 {[%clk 0:00:08.3]} 34. Bh3 {[%clk 0:00:37.8]} 34... Bf5 {[%clk
0:00:06]} 35. Rc5 {[%clk 0:00:35]} 35... Qxc5 {[%clk 0:00:06.2]} 36. Qxc5 {[%clk
0:00:35]} 36... Bxh3 {[%clk 0:00:07.1]} 37. Rxa4 {[%clk 0:00:33.8]} 37... Bxd7
{[%clk 0:00:07.2]} 38. Rd4 {[%clk 0:00:29.8]} 38... Rdc8 {[%clk 0:00:06.4]} 39.
Qa3 {[%clk 0:00:23.8]} 39... Be6 {[%clk 0:00:06.6]} 40. Rd1 {[%clk 0:00:22.5]}
40... h5 {[%clk 0:00:06.1]} 41. Qe3 {[%clk 0:00:22.1]} 41... g6 {[%clk 0:00:06]}
42. Re1 {[%clk 0:00:22.4]} 42... Rc6 {[%clk 0:00:03.8]} 43. Kg2 {[%clk
0:00:22.2]} 43... Rbc8 {[%clk 0:00:04.2]} 44. Kg1 {[%clk 0:00:22.4]} 44... Rc4
{[%clk 0:00:04.3]} 45. Qe5 {[%clk 0:00:21.7]} 45... R4c6 {[%clk 0:00:04.6]} 46.
Qe3 {[%clk 0:00:21.6]} 46... Bf5 {[%clk 0:00:05]} 47. Kg2 {[%clk 0:00:21.4]}
47... Re6 {[%clk 0:00:05]} 48. Qd2 {[%clk 0:00:20.4]} 48... Be4+ {[%clk
0:00:05.1]} 49. Kg1 {[%clk 0:00:20.6]} 49... Rce8 {[%clk 0:00:05.3]} 50. Qd4
{[%clk 0:00:20.3]} 50... Bf3 {[%clk 0:00:04.3]} 51. Rxe6 {[%clk 0:00:20]} 51...
Rxe6 {[%clk 0:00:05.2]} 52. Kf1 {[%clk 0:00:20.2]} 52... Be2+ {[%clk 0:00:05]}
53. Ke1 {[%clk 0:00:20.1]} 53... Bb5+ {[%clk 0:00:05]} 54. Kd2 {[%clk
0:00:18.5]} 54... Bc6 {[%clk 0:00:05.9]} 55. Kc2 {[%clk 0:00:17.1]} 55... Be4+
{[%clk 0:00:05.8]} 56. Kd1 {[%clk 0:00:17.2]} 56... Bf5 {[%clk 0:00:06.7]} 57.
Kd2 {[%clk 0:00:17.2]} 57... Kf8 {[%clk 0:00:06.9]} 58. Qd8+ {[%clk 0:00:17]}
58... Kg7 {[%clk 0:00:07.1]} 59. Qd4+ {[%clk 0:00:17]} 59... Kh7 {[%clk
0:00:07.1]} 60. Qd8 {[%clk 0:00:16.4]} 60... Re5 {[%clk 0:00:05.8]} 61. f4
{[%clk 0:00:16.2]} 61... Re6 {[%clk 0:00:05.3]} 62. Qc7 {[%clk 0:00:15.6]} 62...
Kg7 {[%clk 0:00:05.3]} 63. Qc3+ {[%clk 0:00:15.8]} 63... Kg8 {[%clk 0:00:05.8]}
64. Qc8+ {[%clk 0:00:15.4]} 64... Kh7 {[%clk 0:00:06.3]} 65. Qc7 {[%clk
0:00:15.4]} 65... Kg8 {[%clk 0:00:04.1]} 66. Qc8+ {[%clk 0:00:15]} 66... Kg7
{[%clk 0:00:04.4]} 67. Qc3+ {[%clk 0:00:15.1]} 67... Kf8 {[%clk 0:00:04.8]} 68.
Qc8+ {[%clk 0:00:14.5]} 68... Ke7 {[%clk 0:00:05.2]} 69. Qc7+ {[%clk 0:00:13.2]}
69... Ke8 {[%clk 0:00:04.8]} 70. Qc8+ {[%clk 0:00:13.1]} 70... Ke7 {[%clk
0:00:05.2]} 71. Qc7+ {[%clk 0:00:13.3]} 71... Kf8 {[%clk 0:00:06.1]} 72. Qd8+
{[%clk 0:00:12.4]} 72... Kg7 {[%clk 0:00:06.1]} 73. Qd4+ {[%clk 0:00:12.1]}
73... Kh7 {[%clk 0:00:06.3]} 74. Qa7 {[%clk 0:00:10.6]} 74... Rd6+ {[%clk
0:00:05.9]} 75. Ke3 {[%clk 0:00:09.5]} 75... Rd7 {[%clk 0:00:06.8]} 76. Qc5
{[%clk 0:00:08.9]} 76... Rd3+ {[%clk 0:00:07.1]} 77. Kf2 {[%clk 0:00:08.9]}
77... Be4 {[%clk 0:00:07]} 78. Qe7 {[%clk 0:00:08.1]} 78... Bd5 {[%clk
0:00:06.3]} 79. Qd7 {[%clk 0:00:07.8]} 79... Bc4 {[%clk 0:00:05.9]} 80. Qe7
{[%clk 0:00:07.1]} 80... Be6 {[%clk 0:00:05.6]} 81. Qf6 {[%clk 0:00:06]} 81...
Rb3 {[%clk 0:00:05.5]} 82. Kg2 {[%clk 0:00:05.7]} 82... Bd5+ {[%clk 0:00:05.4]}
83. Kf2 {[%clk 0:00:06.4]} 83... Rf3+ {[%clk 0:00:05.3]} 84. Ke2 {[%clk
0:00:05.8]} 84... Rxg3 {[%clk 0:00:05.5]} 85. f5 {[%clk 0:00:06.1]} 85... Rg2+
{[%clk 0:00:03.8]} 86. Ke3 {[%clk 0:00:05.7]} 86... Rg4 {[%clk 0:00:03.8]} 87.
fxg6+ {[%clk 0:00:05.5]} 87... Rxg6 {[%clk 0:00:03.8]} 88. Qf5 {[%clk
0:00:05.6]} 88... Be6 {[%clk 0:00:03.4]} 89. Qxh5+ {[%clk 0:00:05.3]} 89... Kg7
{[%clk 0:00:04.3]} 90. Qe5+ {[%clk 0:00:05.4]} 90... Kh7 {[%clk 0:00:04.4]} 91.
h5 {[%clk 0:00:05.7]} 91... Rh6 {[%clk 0:00:03.6]} 92. Qg5 {[%clk 0:00:05.5]}
92... f6 {[%clk 0:00:03]} 93. Qh4 {[%clk 0:00:05.5]} 93... Bf7 {[%clk
0:00:03.2]} 94. Qe4+ {[%clk 0:00:05.5]} 94... Kg7 {[%clk 0:00:03.2]} 95. Qg4+
{[%clk 0:00:05.5]} 95... Kf8 {[%clk 0:00:03.6]} 96. Qc8+ {[%clk 0:00:05.4]}
96... Kg7 {[%clk 0:00:03.3]} 97. Qg4+ {[%clk 0:00:05.4]} 97... Kf8 {[%clk
0:00:03.7]} 98. Qc8+ {[%clk 0:00:05.5]} 98... Kg7 {[%clk 0:00:04.2]} 99. Qg4+
{[%clk 0:00:05.4]} 1/2-1/2

[Event "*** SCC Grand Prix: Titled Tuesday Blitz"]
[Site "Chess.com"]
[Date "2020.07.07"]
[Round "9"]
[White "Keithonsky"]
[Black "Andrei_Belozerov"]
[Result "1-0"]
[WhiteElo "2443"]
[BlackElo "2553"]
[TimeControl "180+1"]
[EndTime "11:49:55 PDT"]
[Termination "Keithonsky won by checkmate"]

1. d4 {[%clk 0:03:00.9]} 1... d5 {[%clk 0:02:59.2]} 2. c4 {[%clk 0:03:01.2]}
2... c6 {[%clk 0:02:59.5]} 3. Nf3 {[%clk 0:03:01.4]} 3... Nf6 {[%clk 0:02:59.2]}
4. Qc2 {[%clk 0:03:00.9]} 4... dxc4 {[%clk 0:02:57.6]} 5. Qxc4 {[%clk
0:03:00.4]} 5... Bg4 {[%clk 0:02:58.1]} 6. Ne5 {[%clk 0:03:00.1]} 6... Be6
{[%clk 0:02:57.2]} 7. Qb4 {[%clk 0:03:00.1]} 7... Qb6 {[%clk 0:02:53.9]} 8. Bd2
{[%clk 0:02:59]} 8... Na6 {[%clk 0:02:50.1]} 9. Qxb6 {[%clk 0:02:56.7]} 9...
axb6 {[%clk 0:02:50]} 10. e3 {[%clk 0:02:49.1]} 10... Ne4 {[%clk 0:02:41]} 11.
Bd3 {[%clk 0:02:48.6]} 11... Nxd2 {[%clk 0:02:39.4]} 12. Kxd2 {[%clk 0:02:49.5]}
12... Nb4 {[%clk 0:02:38.8]} 13. a3 {[%clk 0:02:49.6]} 13... Nxd3 {[%clk
0:02:36.3]} 14. Nxd3 {[%clk 0:02:50.5]} 14... Bf5 {[%clk 0:02:18.8]} 15. Nc3
{[%clk 0:02:49.6]} 15... e6 {[%clk 0:02:18.7]} 16. e4 {[%clk 0:02:49.2]} 16...
Bg6 {[%clk 0:02:17.9]} 17. f3 {[%clk 0:02:49.5]} 17... O-O-O {[%clk 0:02:16.7]}
18. Ke3 {[%clk 0:02:48.5]} 18... Be7 {[%clk 0:02:14.7]} 19. h4 {[%clk
0:02:47.8]} 19... h5 {[%clk 0:02:13.3]} 20. g3 {[%clk 0:02:47.4]} 20... f6
{[%clk 0:02:11]} 21. Rhc1 {[%clk 0:02:46.6]} 21... Kb8 {[%clk 0:02:10.1]} 22.
Na4 {[%clk 0:02:45.3]} 22... Ka7 {[%clk 0:02:06.2]} 23. b4 {[%clk 0:02:40.9]}
23... Rd7 {[%clk 0:02:05.6]} 24. b5 {[%clk 0:02:36.9]} 24... Rhd8 {[%clk
0:01:53.4]} 25. bxc6 {[%clk 0:02:25.7]} 25... Rxd4 {[%clk 0:01:53]} 26. Nab2
{[%clk 0:02:25.8]} 26... R4d6 {[%clk 0:01:16]} 27. cxb7 {[%clk 0:02:09]} 27...
Kxb7 {[%clk 0:01:15.1]} 28. Rc3 {[%clk 0:02:07.2]} 28... Be8 {[%clk 0:01:08.2]}
29. Nc4 {[%clk 0:02:06.7]} 29... Rc6 {[%clk 0:01:02.6]} 30. Rb1 {[%clk
0:02:02.9]} 30... Ka7 {[%clk 0:01:01.3]} 31. a4 {[%clk 0:01:52.5]} 31... Rdc8
{[%clk 0:00:59.2]} 32. Rbc1 {[%clk 0:01:46.4]} 32... e5 {[%clk 0:00:56.6]} 33.
Kd2 {[%clk 0:01:40.1]} 33... g6 {[%clk 0:00:54.6]} 34. R1c2 {[%clk 0:01:35.6]}
34... Bf8 {[%clk 0:00:53.2]} 35. Rc1 {[%clk 0:01:35.6]} 35... Bh6+ {[%clk
0:00:52.3]} 36. f4 {[%clk 0:01:36.2]} 36... exf4 {[%clk 0:00:51.8]} 37. gxf4
{[%clk 0:01:37.1]} 37... Bf7 {[%clk 0:00:48.1]} 38. Nd6 {[%clk 0:01:31.5]} 38...
Rxd6 {[%clk 0:00:41.8]} 39. Rxc8 {[%clk 0:01:31.1]} 39... Bxf4+ {[%clk
0:00:41.8]} 40. Ke2 {[%clk 0:01:24]} 40... Bxc1 {[%clk 0:00:41.4]} 41. Rc7+
{[%clk 0:01:21.2]} 41... Ka6 {[%clk 0:00:35.6]} 42. Rxf7 {[%clk 0:01:21.6]}
42... Ba3 {[%clk 0:00:35.7]} 43. Ke3 {[%clk 0:01:14.4]} 43... g5 {[%clk
0:00:23.5]} 44. Rh7 {[%clk 0:01:11.4]} 44... gxh4 {[%clk 0:00:19.7]} 45. Rxh5
{[%clk 0:01:11.7]} 45... Rc6 {[%clk 0:00:18.5]} 46. Rxh4 {[%clk 0:01:10.7]}
46... Rc4 {[%clk 0:00:18.6]} 47. Rh6 {[%clk 0:01:10]} 47... Be7 {[%clk
0:00:16.3]} 48. Rh7 {[%clk 0:01:08.8]} 48... Bd8 {[%clk 0:00:15.6]} 49. Rd7
{[%clk 0:01:08.1]} 49... Bc7 {[%clk 0:00:15.3]} 50. Rd5 {[%clk 0:01:04.1]} 50...
Rxa4 {[%clk 0:00:13.2]} 51. Rd7 {[%clk 0:01:00.7]} 51... Kb7 {[%clk 0:00:12.4]}
52. Rf7 {[%clk 0:00:59.5]} 52... Ra3 {[%clk 0:00:10.7]} 53. Rxf6 {[%clk
0:00:57.8]} 53... b5 {[%clk 0:00:11.2]} 54. Ke2 {[%clk 0:00:55.3]} 54... Bb6
{[%clk 0:00:11]} 55. Kd2 {[%clk 0:00:53.5]} 55... Rb3 {[%clk 0:00:09.7]} 56. e5
{[%clk 0:00:52]} 56... Ra3 {[%clk 0:00:09.2]} 57. e6 {[%clk 0:00:51.7]} 57...
Ra2+ {[%clk 0:00:09.5]} 58. Kd1 {[%clk 0:00:47.8]} 58... Ba5 {[%clk 0:00:08.5]}
59. Nc5+ {[%clk 0:00:45.1]} 59... Kc7 {[%clk 0:00:08]} 60. e7 {[%clk 0:00:41.5]}
60... Rd2+ {[%clk 0:00:07.3]} 61. Kc1 {[%clk 0:00:41.4]} 61... Re2 {[%clk
0:00:07.6]} 62. Rf7 {[%clk 0:00:36.9]} 62... Kd6 {[%clk 0:00:07]} 63. Nb7+
{[%clk 0:00:34.9]} 63... Kd7 {[%clk 0:00:07.3]} 64. Nxa5 {[%clk 0:00:32.4]}
64... Rxe7 {[%clk 0:00:07]} 65. Rf5 {[%clk 0:00:32.5]} 65... Re6 {[%clk
0:00:06.5]} 66. Rxb5 {[%clk 0:00:30.3]} 66... Rd6 {[%clk 0:00:06.5]} 67. Kc2
{[%clk 0:00:30.1]} 67... Ke6 {[%clk 0:00:06.6]} 68. Kc3 {[%clk 0:00:30.1]} 68...
Rd5 {[%clk 0:00:06.8]} 69. Rb6+ {[%clk 0:00:30]} 69... Ke5 {[%clk 0:00:07.1]}
70. Nc4+ {[%clk 0:00:29.6]} 70... Ke4 {[%clk 0:00:07.1]} 71. Re6+ {[%clk
0:00:29]} 71... Kf4 {[%clk 0:00:07.1]} 72. Re1 {[%clk 0:00:28.9]} 72... Rd8
{[%clk 0:00:07.1]} 73. Rf1+ {[%clk 0:00:28.6]} 73... Ke4 {[%clk 0:00:06.7]} 74.
Re1+ {[%clk 0:00:26.8]} 74... Kf4 {[%clk 0:00:06.8]} 75. Re7 {[%clk 0:00:26.7]}
75... Kf3 {[%clk 0:00:06.5]} 76. Ne5+ {[%clk 0:00:25.2]} 76... Kf4 {[%clk
0:00:06]} 77. Nd3+ {[%clk 0:00:25]} 77... Kf3 {[%clk 0:00:05.9]} 78. Kd2 {[%clk
0:00:24.7]} 78... Rd6 {[%clk 0:00:05.7]} 79. Re3+ {[%clk 0:00:24.3]} 79... Kg4
{[%clk 0:00:06]} 80. Ke2 {[%clk 0:00:24.2]} 80... Kf5 {[%clk 0:00:06.2]} 81.
Re5+ {[%clk 0:00:23.7]} 81... Kg4 {[%clk 0:00:06.3]} 82. Ke3 {[%clk 0:00:23.5]}
82... Ra6 {[%clk 0:00:06.2]} 83. Re8 {[%clk 0:00:23.3]} 83... Ra3 {[%clk
0:00:05.5]} 84. Rf8 {[%clk 0:00:21.7]} 84... Kg5 {[%clk 0:00:05.2]} 85. Ke4
{[%clk 0:00:21.7]} 85... Kg6 {[%clk 0:00:04.5]} 86. Ne5+ {[%clk 0:00:21.3]}
86... Kg7 {[%clk 0:00:04.2]} 87. Rf1 {[%clk 0:00:21.8]} 87... Ra4+ {[%clk
0:00:03.4]} 88. Kd5 {[%clk 0:00:21.8]} 88... Ra5+ {[%clk 0:00:03.5]} 89. Ke6
{[%clk 0:00:22.3]} 89... Kh6 {[%clk 0:00:03.6]} 90. Rg1 {[%clk 0:00:20.7]} 90...
Kh5 {[%clk 0:00:03.3]} 91. Kf5 {[%clk 0:00:20.1]} 91... Kh4 {[%clk 0:00:03.4]}
92. Kf4 {[%clk 0:00:19]} 92... Kh3 {[%clk 0:00:03.4]} 93. Nf3 {[%clk 0:00:19.5]}
93... Ra4+ {[%clk 0:00:03.2]} 94. Ke3 {[%clk 0:00:19.8]} 94... Ra3+ {[%clk
0:00:03.2]} 95. Ke4 {[%clk 0:00:20]} 95... Ra4+ {[%clk 0:00:03.1]} 96. Nd4
{[%clk 0:00:20.3]} 96... Kh4 {[%clk 0:00:03.2]} 97. Rg8 {[%clk 0:00:20.1]} 97...
Kh3 {[%clk 0:00:03.3]} 98. Ke5 {[%clk 0:00:20.4]} 98... Kh4 {[%clk 0:00:03.2]}
99. Nf5+ {[%clk 0:00:20.4]} 99... Kh3 {[%clk 0:00:03.2]} 100. Kf6 {[%clk
0:00:21.3]} 100... Ra6+ {[%clk 0:00:03]} 101. Kg5 {[%clk 0:00:22.2]} 101... Ra4
{[%clk 0:00:02.9]} 102. Kf6 {[%clk 0:00:18.5]} 102... Ra6+ {[%clk 0:00:02.4]}
103. Ke5 {[%clk 0:00:18.8]} 103... Ra5+ {[%clk 0:00:02.4]} 104. Ke4 {[%clk
0:00:19.3]} 104... Ra4+ {[%clk 0:00:02.7]} 105. Nd4 {[%clk 0:00:20.2]} 105...
Ra5 {[%clk 0:00:02.7]} 106. Kf3 {[%clk 0:00:20.1]} 106... Kh2 {[%clk 0:00:02.9]}
107. Rh8+ {[%clk 0:00:19.4]} 107... Kg1 {[%clk 0:00:02.1]} 108. Ne2+ {[%clk
0:00:19.8]} 108... Kf1 {[%clk 0:00:02.8]} 109. Rh1# {[%clk 0:00:19.9]} 1-0

[Event "*** SCC Grand Prix: Titled Tuesday Blitz"]
[Site "Chess.com"]
[Date "2020.07.07"]
[Round "9"]
[White "DenLaz"]
[Black "Isajevsky_Anton"]
[Result "1/2-1/2"]
[WhiteElo "2697"]
[BlackElo "2560"]
[TimeControl "180+1"]
[EndTime "11:50:35 PDT"]
[Termination "Game drawn by 50-move rule"]

1. d4 {[%clk 0:03:00.9]} 1... d5 {[%clk 0:02:59.6]} 2. c4 {[%clk 0:03:00.2]}
2... e6 {[%clk 0:02:59.2]} 3. Nf3 {[%clk 0:02:59.3]} 3... Nf6 {[%clk 0:02:58.9]}
4. Nc3 {[%clk 0:02:57.1]} 4... a6 {[%clk 0:02:58.7]} 5. cxd5 {[%clk 0:02:56.6]}
5... exd5 {[%clk 0:02:58.5]} 6. Bg5 {[%clk 0:02:57.1]} 6... Be6 {[%clk
0:02:56.4]} 7. e3 {[%clk 0:02:56.7]} 7... Nbd7 {[%clk 0:02:56.1]} 8. Bd3 {[%clk
0:02:57]} 8... Bd6 {[%clk 0:02:56.3]} 9. O-O {[%clk 0:02:56.8]} 9... c6 {[%clk
0:02:56.1]} 10. Qc2 {[%clk 0:02:56.7]} 10... Qc7 {[%clk 0:02:52.9]} 11. Rab1
{[%clk 0:02:53.4]} 11... O-O {[%clk 0:02:42]} 12. Ne2 {[%clk 0:02:38.2]} 12...
a5 {[%clk 0:02:31.3]} 13. Bf4 {[%clk 0:02:32.5]} 13... Rfe8 {[%clk 0:02:25.8]}
14. Bxd6 {[%clk 0:02:26.3]} 14... Qxd6 {[%clk 0:02:26.7]} 15. Nf4 {[%clk
0:02:26.8]} 15... g6 {[%clk 0:01:29.4]} 16. Ng5 {[%clk 0:02:00.1]} 16... Nf8
{[%clk 0:01:28.8]} 17. f3 {[%clk 0:01:54.2]} 17... Bd7 {[%clk 0:01:18.9]} 18.
Rbe1 {[%clk 0:01:51]} 18... Rxe3 {[%clk 0:01:15]} 19. Ngh3 {[%clk 0:00:11.9]}
19... Rxe1 {[%clk 0:01:09]} 20. Rxe1 {[%clk 0:00:11.8]} 20... Qb4 {[%clk
0:01:09.6]} 21. Qc3 {[%clk 0:00:11.2]} 21... Qxc3 {[%clk 0:01:09]} 22. bxc3
{[%clk 0:00:12.1]} 22... Re8 {[%clk 0:01:09.1]} 23. Rb1 {[%clk 0:00:12.1]} 23...
b5 {[%clk 0:01:07.9]} 24. Kf2 {[%clk 0:00:12.6]} 24... h6 {[%clk 0:01:05.1]} 25.
g4 {[%clk 0:00:11.1]} 25... Kg7 {[%clk 0:01:01.3]} 26. Ng1 {[%clk 0:00:10.3]}
26... Ne6 {[%clk 0:00:52.2]} 27. Nfe2 {[%clk 0:00:08.6]} 27... Nc7 {[%clk
0:00:51]} 28. Nh3 {[%clk 0:00:07.7]} 28... Re7 {[%clk 0:00:47.2]} 29. Nhf4
{[%clk 0:00:07.6]} 29... Nfe8 {[%clk 0:00:46.9]} 30. h4 {[%clk 0:00:07.4]} 30...
Nd6 {[%clk 0:00:46.9]} 31. Ng2 {[%clk 0:00:07.6]} 31... Nc4 {[%clk 0:00:43.8]}
32. Ng3 {[%clk 0:00:04.3]} 32... Nd6 {[%clk 0:00:30.7]} 33. h5 {[%clk
0:00:04.3]} 33... g5 {[%clk 0:00:30.6]} 34. Ne3 {[%clk 0:00:04.7]} 34... Kf6
{[%clk 0:00:27.6]} 35. Rf1 {[%clk 0:00:04]} 35... Nce8 {[%clk 0:00:24.4]} 36.
Ng2 {[%clk 0:00:03.8]} 36... Ng7 {[%clk 0:00:22]} 37. Rd1 {[%clk 0:00:03.5]}
37... Ne6 {[%clk 0:00:21.1]} 38. Be2 {[%clk 0:00:03.2]} 38... Nf4 {[%clk
0:00:20.9]} 39. Nxf4 {[%clk 0:00:01.9]} 39... gxf4 {[%clk 0:00:21.2]} 40. Nf1
{[%clk 0:00:02.8]} 40... Kg5 {[%clk 0:00:20.9]} 41. Nd2 {[%clk 0:00:03]} 41...
f5 {[%clk 0:00:20.7]} 42. gxf5 {[%clk 0:00:02.2]} 42... Nxf5 {[%clk 0:00:21.6]}
43. Nb3 {[%clk 0:00:02.8]} 43... Ng3 {[%clk 0:00:21.7]} 44. Bd3 {[%clk
0:00:02.3]} 44... Kxh5 {[%clk 0:00:21.2]} 45. Nc5 {[%clk 0:00:02.2]} 45... Be8
{[%clk 0:00:21.3]} 46. a4 {[%clk 0:00:02.1]} 46... bxa4 {[%clk 0:00:20.3]} 47.
Nxa4 {[%clk 0:00:03]} 47... Rb7 {[%clk 0:00:18.5]} 48. Nc5 {[%clk 0:00:03]}
48... Rb2+ {[%clk 0:00:18.4]} 49. Ke1 {[%clk 0:00:03.3]} 49... Kg5 {[%clk
0:00:12.9]} 50. Ra1 {[%clk 0:00:03.3]} 50... Bg6 {[%clk 0:00:09.3]} 51. Bxg6
{[%clk 0:00:02.5]} 51... Kxg6 {[%clk 0:00:10.2]} 52. Rxa5 {[%clk 0:00:02.8]}
52... Re2+ {[%clk 0:00:10]} 53. Kd1 {[%clk 0:00:02.7]} 53... Rf2 {[%clk
0:00:10.5]} 54. Ra6 {[%clk 0:00:02.6]} 54... h5 {[%clk 0:00:10.9]} 55. Rxc6+
{[%clk 0:00:02.8]} 55... Kg5 {[%clk 0:00:11.1]} 56. Ne6+ {[%clk 0:00:03.3]}
56... Kf5 {[%clk 0:00:10.4]} 57. Ng7+ {[%clk 0:00:03.5]} 57... Kg5 {[%clk
0:00:10.4]} 58. Ne6+ {[%clk 0:00:02.9]} 58... Kh4 {[%clk 0:00:10.8]} 59. Nxf4
{[%clk 0:00:02.9]} 59... Rxf3 {[%clk 0:00:11.2]} 60. Ng6+ {[%clk 0:00:03]} 60...
Kg5 {[%clk 0:00:09.1]} 61. Ne5 {[%clk 0:00:03.9]} 61... Rf1+ {[%clk 0:00:09]}
62. Kd2 {[%clk 0:00:04.4]} 62... h4 {[%clk 0:00:09.5]} 63. Rc8 {[%clk
0:00:04.7]} 63... h3 {[%clk 0:00:09.5]} 64. Rg8+ {[%clk 0:00:05.1]} 64... Kf4
{[%clk 0:00:08.6]} 65. Rg4+ {[%clk 0:00:05.1]} 65... Kf5 {[%clk 0:00:07.6]} 66.
Rxg3 {[%clk 0:00:05.3]} 66... h2 {[%clk 0:00:08.1]} 67. Rh3 {[%clk 0:00:05.8]}
67... h1=Q {[%clk 0:00:08.4]} 68. Rxh1 {[%clk 0:00:06.7]} 68... Rxh1 {[%clk
0:00:09]} 69. Kd3 {[%clk 0:00:07]} 69... Rh3+ {[%clk 0:00:08.6]} 70. Kc2 {[%clk
0:00:07.1]} 70... Ke4 {[%clk 0:00:09.1]} 71. Kb3 {[%clk 0:00:08]} 71... Rh1
{[%clk 0:00:09.1]} 72. Kb4 {[%clk 0:00:07.6]} 72... Rb1+ {[%clk 0:00:09]} 73.
Kc5 {[%clk 0:00:07.1]} 73... Rb3 {[%clk 0:00:09.1]} 74. c4 {[%clk 0:00:07.4]}
74... dxc4 {[%clk 0:00:09.5]} 75. Nxc4 {[%clk 0:00:08.3]} 75... Rd3 {[%clk
0:00:09.3]} 76. Nd6+ {[%clk 0:00:08.2]} 76... Kf4 {[%clk 0:00:08.4]} 77. d5
{[%clk 0:00:08]} 77... Rd1 {[%clk 0:00:08.1]} 78. Nc4 {[%clk 0:00:07.2]} 78...
Kf5 {[%clk 0:00:08.3]} 79. Kc6 {[%clk 0:00:05.9]} 79... Rc1 {[%clk 0:00:07.5]}
80. Kc5 {[%clk 0:00:06]} 80... Kf6 {[%clk 0:00:07.5]} 81. Kb5 {[%clk 0:00:06.3]}
81... Ke7 {[%clk 0:00:07.1]} 82. Nb6 {[%clk 0:00:05.4]} 82... Kd6 {[%clk
0:00:06.7]} 83. Nc4+ {[%clk 0:00:05]} 83... Kxd5 {[%clk 0:00:07]} 84. Na5 {[%clk
0:00:05.9]} 84... Rb1+ {[%clk 0:00:06.6]} 85. Ka6 {[%clk 0:00:06.3]} 85... Kc5
{[%clk 0:00:05.4]} 86. Nb7+ {[%clk 0:00:06.1]} 86... Kc6 {[%clk 0:00:05.7]} 87.
Na5+ {[%clk 0:00:06.6]} 87... Kc7 {[%clk 0:00:05.9]} 88. Nc4 {[%clk 0:00:05.8]}
88... Rb4 {[%clk 0:00:05.7]} 89. Na5 {[%clk 0:00:05.7]} 89... Rb2 {[%clk
0:00:03.5]} 90. Nc4 {[%clk 0:00:04.5]} 90... Rb3 {[%clk 0:00:03.5]} 91. Na5
{[%clk 0:00:05.1]} 91... Rb4 {[%clk 0:00:03.9]} 92. Ka7 {[%clk 0:00:05.5]} 92...
Ra4 {[%clk 0:00:04.2]} 93. Ka6 {[%clk 0:00:06.4]} 93... Rd4 {[%clk 0:00:04.2]}
94. Kb5 {[%clk 0:00:06.8]} 94... Rd5+ {[%clk 0:00:04.5]} 95. Ka4 {[%clk
0:00:06.8]} 95... Rd4+ {[%clk 0:00:04.5]} 96. Kb5 {[%clk 0:00:06.9]} 96... Rh4
{[%clk 0:00:05.4]} 97. Nc4 {[%clk 0:00:06.6]} 97... Rh5+ {[%clk 0:00:05.6]} 98.
Kb4 {[%clk 0:00:07.1]} 98... Kc6 {[%clk 0:00:05.4]} 99. Na5+ {[%clk 0:00:08]}
99... Kd5 {[%clk 0:00:05.7]} 100. Nb3 {[%clk 0:00:08.6]} 100... Rh4+ {[%clk
0:00:06]} 101. Kb5 {[%clk 0:00:09.2]} 101... Ke4 {[%clk 0:00:05.8]} 102. Nc5+
{[%clk 0:00:08.9]} 102... Kd4 {[%clk 0:00:06.1]} 103. Ne6+ {[%clk 0:00:08.7]}
103... Kd5 {[%clk 0:00:05.4]} 104. Nc7+ {[%clk 0:00:09.3]} 104... Kd6 {[%clk
0:00:05.2]} 105. Na6 {[%clk 0:00:10.2]} 105... Rh5+ {[%clk 0:00:05]} 106. Kb6
{[%clk 0:00:10.5]} 106... Rh1 {[%clk 0:00:05.9]} 107. Kb5 {[%clk 0:00:09.9]}
107... Rb1+ {[%clk 0:00:06.3]} 108. Kc4 {[%clk 0:00:10.3]} 108... Rb6 {[%clk
0:00:05.7]} 109. Nb4 {[%clk 0:00:10.3]} 109... Rb8 {[%clk 0:00:06.6]} 110. Nd3
{[%clk 0:00:10.4]} 110... Rh8 {[%clk 0:00:07]} 111. Kd4 {[%clk 0:00:10.7]}
111... Rh4+ {[%clk 0:00:07.1]} 112. Ke3 {[%clk 0:00:11.1]} 112... Rh3+ {[%clk
0:00:07.4]} 113. Ke4 {[%clk 0:00:11]} 113... Rh5 {[%clk 0:00:07.8]} 114. Nf4
{[%clk 0:00:10.9]} 114... Ra5 {[%clk 0:00:08.2]} 115. Kd4 {[%clk 0:00:11.1]}
115... Ra4+ {[%clk 0:00:08.3]} 116. Ke3 {[%clk 0:00:11.6]} 116... Ke5 {[%clk
0:00:08.6]} 117. Nd3+ {[%clk 0:00:12.5]} 117... Kf5 {[%clk 0:00:09.1]} 118. Nc5
{[%clk 0:00:12.3]} 118... Rc4 {[%clk 0:00:08.7]} 119. Nd3 {[%clk 0:00:12.7]}
119... Rc3 {[%clk 0:00:08.7]} 120. Kd4 {[%clk 0:00:12.8]} 120... Rc8 {[%clk
0:00:09.2]} 121. Ke3 {[%clk 0:00:13.2]} 121... Ke6 {[%clk 0:00:08.7]} 122. Ke4
{[%clk 0:00:13.1]} 122... Rh8 {[%clk 0:00:08]} 123. Nf4+ {[%clk 0:00:13]} 123...
Kf6 {[%clk 0:00:07.2]} 124. Nd5+ {[%clk 0:00:13.1]} 124... Kg5 {[%clk
0:00:07.7]} 125. Ne3 {[%clk 0:00:13.6]} 125... Rh4+ {[%clk 0:00:07.2]} 126. Ke5
{[%clk 0:00:13.8]} 126... Rh1 {[%clk 0:00:06.9]} 127. Nd5 {[%clk 0:00:13.9]}
127... Re1+ {[%clk 0:00:07]} 128. Kd4 {[%clk 0:00:14.1]} 128... Kf5 {[%clk
0:00:07.2]} 129. Ne3+ {[%clk 0:00:14]} 129... Ke6 {[%clk 0:00:07.4]} 130. Ke4
{[%clk 0:00:14]} 130... Ra1 {[%clk 0:00:07]} 131. Kf4 {[%clk 0:00:12.5]} 131...
Ra4+ {[%clk 0:00:07.4]} 132. Kf3 {[%clk 0:00:12.9]} 132... Ke5 {[%clk
0:00:07.3]} 133. Ng4+ {[%clk 0:00:13.2]} 133... Kd4 {[%clk 0:00:07.8]} 1/2-1/2